Departmental Area,Entity,Payment Date,Expense Type,Expense Area,Supplier Name,Payment Reference,Invoice Distribution Amount,Description,Suplier Type,Expenditure Type
UK Statistics Family,Office for National Statistics,01/09/2020,End User Software And Hardware,IT Operations,Clearvision-Cm,187174,"69,864.53",Software Licenses,SME,Programme Expenditure
UK Statistics Family,Office for National Statistics,01/09/2020,Exp - Permanent UK Staff - PRP Voucher Payments,ONS Corporate Funds,Park Retail Ltd,187176,"3,563.10",Performance Reward Vouchers,Large,Programme Expenditure
UK Statistics Family,Office for National Statistics,01/09/2020,Exp - Purchase Of Goods/Services - Incentive Payments,Survey Management,Park Retail Ltd,187176,"40,653.30",Survey Response Incentive Vouchers,Large,Programme Expenditure
UK Statistics Family,Office for National Statistics,01/09/2020,Exp - Purchase Of Goods/Services - Contractors,Testing,La International,187182,"6,888.24",Information Management Services,SME,Programme Expenditure
UK Statistics Family,Office for National Statistics,01/09/2020,Exp - Purchase Of Goods/Services - Contractors,Testing,La International,187182,"13,936.68",Information Management Services,SME,Programme Expenditure
UK Statistics Family,Office for National Statistics,01/09/2020,Exp - Short-Term Contract & Agency Staff - Full Cost,Business Change Support,La International,187182,"2,172.04",Information Management Services,SME,Programme Expenditure
UK Statistics Family,Office for National Statistics,01/09/2020,Exp - Purchase Of Goods/Services - Contractors,Security Advisory,La International,187182,"7,689.24",Information Management Services,SME,Programme Expenditure
UK Statistics Family,Office for National Statistics,01/09/2020,Exp - Purchase Of Goods/Services - Contractors,Security Advisory,La International,187182,"4,165.02",Information Management Services,SME,Programme Expenditure
UK Statistics Family,Office for National Statistics,01/09/2020,Exp - Purchase Of Goods/Services - Contractors,Tech Delivery SRS,La International,187182,"1,794.16",Information Management Services,SME,Programme Expenditure
UK Statistics Family,Office for National Statistics,01/09/2020,Exp - Purchase Of Goods/Services - Contractors,Tech Delivery Data As A Platform,La International,187182,"10,047.24",Information Management Services,SME,Programme Expenditure
UK Statistics Family,Office for National Statistics,01/09/2020,Exp - Purchase Of Goods/Services - Contractors,IT Applications,La International,187182,"6,023.28",Information Management Services,SME,Programme Expenditure
UK Statistics Family,Office for National Statistics,01/09/2020,Exp - Purchase Of Goods/Services - Contractors,Digital Delivery,La International,187182,"10,764.90",Information Management Services,SME,Programme Expenditure
UK Statistics Family,Office for National Statistics,01/09/2020,Exp - Purchase Of Goods/Services - Contractors,Digital Delivery,La International,187182,"24,400.44",Information Management Services,SME,Programme Expenditure
UK Statistics Family,Office for National Statistics,01/09/2020,Capital Major Works >25K,Property Titchfield,Paramount Office Interiors Ltd,187183,"17,010.91",Buildings Maintenance,SME,Programme Expenditure
UK Statistics Family,Office for National Statistics,01/09/2020,Major Works Over 25K,Property Titchfield,Paramount Office Interiors Ltd,187183,"36,148.17",Buildings Maintenance,SME,Programme Expenditure
UK Statistics Family,Office for National Statistics,01/09/2020,Capital Major Works >25K,Property Newport,Paramount Office Interiors Ltd,187184,"51,405.43",Buildings Maintenance,SME,Programme Expenditure
UK Statistics Family,Office for National Statistics,01/09/2020,Major Works Over 25K,Property Newport,Paramount Office Interiors Ltd,187184,"95,467.23",Buildings Maintenance,SME,Programme Expenditure
UK Statistics Family,Office for National Statistics,01/09/2020,Permanent Staff Costs,Stakeholder Engagement And Comms,Cabinet Office,187190,"29,584.84",Fast Stream Recruitment,Large,Programme Expenditure
UK Statistics Family,Office for National Statistics,01/09/2020,Permanent Staff Costs,ONS And GSS Careers,Cabinet Office,187190,"47,971.04",Fast Stream Recruitment,Large,Programme Expenditure
UK Statistics Family,Office for National Statistics,01/09/2020,EXP - PURCHASE OF GOODS/SERVICES -  NON IT CONTRACTUAL PAYMENTS,Data Collection Service,Serco Ltd,187194,"32,140.57",Census Contact Centre,Large,Programme Expenditure
UK Statistics Family,Office for National Statistics,01/09/2020,Other Goods And Services,Digital Publishing,Gresham Office Furniture Limited,187195,-156.60,Office Furniture,SME,Programme Expenditure
UK Statistics Family,Office for National Statistics,01/09/2020,Survey Incentive Vouchers,Property Services,Gresham Office Furniture Limited,187195,"27,679.20",Office Furniture,SME,Programme Expenditure
UK Statistics Family,Office for National Statistics,01/09/2020,Survey Incentive Vouchers,Business Analysis & Soc Survey,Gresham Office Furniture Limited,187195,"32,173.20",Office Furniture,SME,Programme Expenditure
UK Statistics Family,Office for National Statistics,01/09/2020,Hosting,IT Operations,CTS (Cloud Technology Solutions Ltd),187197,"33,009.12",DST Infrastructure Preparation,Large,Programme Expenditure
UK Statistics Family,Office for National Statistics,01/09/2020,Hosting,IT Operations,CTS (Cloud Technology Solutions Ltd),187197,63736.68,DST Infrastructure Preparation,Large,Programme Expenditure
UK Statistics Family,Office for National Statistics,01/09/2020,Exp - Purchase Of Goods/Services - IT Contractual Services,Tech Delivery Next Gen IT And Infrastructure,Diegesis Limited,187204,780.00,Information Management Services,Large,Programme Expenditure
UK Statistics Family,Office for National Statistics,01/09/2020,Exp - Purchase Of Goods/Services - IT Contractual Services,IT Applications,Diegesis Limited,187204,"196,260.00",Information Management Services,Large,Programme Expenditure
UK Statistics Family,Office for National Statistics,01/09/2020,Exp - Purchase Of Goods/Services - Contractor Travel,IT Applications,Diegesis Limited,187204,"3,647.54",Information Management Services,Large,Programme Expenditure
UK Statistics Family,Office for National Statistics,01/09/2020,EXP - PURCHASE OF GOODS/SERVICES -  NON IT CONTRACTUAL PAYMENTS,Census CCS Data Collection,Adecco UK Limited,187208,"1,532,971.20",Census People Services Contractual,SME,Programme Expenditure
UK Statistics Family,Office for National Statistics,02/09/2020,Exp - Short-Term Contract & Agency Staff - Full Cost,Census CCS Data Collection,La International,187374,464.52,Information Management Services,SME,Programme Expenditure
UK Statistics Family,Office for National Statistics,02/09/2020,Exp - Short-Term Contract & Agency Staff - Full Cost,Digital Publishing,La International,187374,680.65,Information Management Services,SME,Programme Expenditure
UK Statistics Family,Office for National Statistics,02/09/2020,Exp - Purchase Of Goods/Services - Contractors,Business Architecture Transformation And Statistical Strategy,La International,187374,"2,050.46",Information Management Services,SME,Programme Expenditure
UK Statistics Family,Office for National Statistics,02/09/2020,Exp - Purchase Of Goods/Services - Contractors,Data Architecture,La International,187374,"3,524.22",Information Management Services,SME,Programme Expenditure
UK Statistics Family,Office for National Statistics,02/09/2020,Exp - Purchase Of Goods/Services - Contractors,Data Architecture,La International,187374,"3,524.22",Information Management Services,SME,Programme Expenditure
UK Statistics Family,Office for National Statistics,02/09/2020,Exp - Purchase Of Goods/Services - Contractors,Data Architecture,La International,187374,"18,005.64",Information Management Services,SME,Programme Expenditure
UK Statistics Family,Office for National Statistics,02/09/2020,Exp - Purchase Of Goods/Services - Contractors,Tech Delivery Legacy Sp,La International,187374,"6,696.02",Information Management Services,SME,Programme Expenditure
UK Statistics Family,Office for National Statistics,02/09/2020,Exp - Purchase Of Goods/Services - Contractors,IT Applications,La International,187374,"8,394.14",Information Management Services,SME,Programme Expenditure
UK Statistics Family,Office for National Statistics,02/09/2020,"ICT Outsourcing, Maintenance And Support",IT Operations,Proact IT UK Ltd.,187377,"128,580.00",Software Licenses,SME,Programme Expenditure
UK Statistics Family,Office for National Statistics,02/09/2020,Other Professional Services,Policy Secretariat,Government Legal Department,187382,"37,113.11",Legal Services,Large,Programme Expenditure
UK Statistics Family,Office for National Statistics,02/09/2020,Other Professional Services,Policy Secretariat,Government Legal Department,187382,"5,400.48",Legal Services,Large,Programme Expenditure
UK Statistics Family,Office for National Statistics,02/09/2020,Telecoms,IT Operations,Crown Hosting Data Centres Limited,187389,"2,580.00",Information Management Services,SME,Programme Expenditure
UK Statistics Family,Office for National Statistics,02/09/2020,Hosting,IT Operations,Crown Hosting Data Centres Limited,187389,"56,736.06",Information Management Services,SME,Programme Expenditure
UK Statistics Family,Office for National Statistics,02/09/2020,IT (Owned) At Cost - Additions,Expansion Programme,Stone Computers,187394,"403,224.36",Computers and Peripherals ,Large,Programme Expenditure
UK Statistics Family,Office for National Statistics,02/09/2020,IT (Owned) At Cost - Additions,IT Operations,Stone Computers,187394,"120,443.64",Computers and Peripherals ,Large,Programme Expenditure
UK Statistics Family,Office for National Statistics,03/09/2020,Other Goods And Services,Interviewer Management FiF,Banner Group Ltd,187457,58140,Stationery,SME,Programme Expenditure
UK Statistics Family,Office for National Statistics,03/09/2020,Other Goods And Services,Interview Management IPS,Banner Group Ltd,187457,18360,Stationery,SME,Programme Expenditure
UK Statistics Family,Office for National Statistics,03/09/2020,Exp - Purchase Of Goods/Services - Incentive Payments,Interviewer Support,P & Mm Ltd,187458,"288,506.58",Survey Response Incentive Vouchers,Large,Programme Expenditure
UK Statistics Family,Office for National Statistics,03/09/2020,Hosting,IT Operations,CTS (Cloud Technology Solutions Ltd),187470,"79,153.19",DST Infrastructure Preparation,Large,Programme Expenditure
UK Statistics Family,Office for National Statistics,03/09/2020,Exp - Purchase Of Goods/Services - IT Contractual Services,Digital Delivery,Methods Business & Digital Technology Ltd,187473,"127,749.00",Information Management Services,Large,Programme Expenditure
UK Statistics Family,Office for National Statistics,03/09/2020,Exp - Purchase Of Goods/Services - IT Contractual Services,Digital Delivery,Equal Experts UK Ltd,187477,"76,334.40",Information Management Services,Large,Programme Expenditure
UK Statistics Family,Office for National Statistics,04/09/2020,End User Software And Hardware,IT Operations,CCS MEDIA LTD,187488,"38,624.83",Software Licenses,Large,Programme Expenditure
UK Statistics Family,Office for National Statistics,04/09/2020,EXP - PURCHASE OF GOODS/SERVICES -  NON IT CONTRACTUAL PAYMENTS,Census CCS Data Collection,Adecco UK Limited,187492,"782,901.60",Census People Services Contractual,SME,Programme Expenditure
UK Statistics Family,Office for National Statistics,04/09/2020,Surveys,International Trade And Transactions,VesselsValue ltd  ,187493,"43,200.00",Information Management Services,SME,Programme Expenditure
UK Statistics Family,Office for National Statistics,04/09/2020,Exp - Purchase Of Goods/Services - IT Contractual Services,International Trade And Transactions,Mango Solutions,187499,"14,688.00",Information Management Services,SME,Programme Expenditure
UK Statistics Family,Office for National Statistics,04/09/2020,Exp - Purchase Of Goods/Services - IT Contractual Services,International Trade And Transactions,Mango Solutions,187499,"44,472.00",Information Management Services,SME,Programme Expenditure
UK Statistics Family,Office for National Statistics,07/09/2020,Exp - Purchase Of Goods/Services - Contractors,Testing,Concept Information Technology Ltd T/A Concept Resourcing,187657,"13,235.40",Information Management Services,Large,Programme Expenditure
UK Statistics Family,Office for National Statistics,07/09/2020,Exp - Short-Term Contract & Agency Staff - Full Cost,Strategy And Engagement,Concept Information Technology Ltd T/A Concept Resourcing,187657,"1,864.31",Information Management Services,Large,Programme Expenditure
UK Statistics Family,Office for National Statistics,07/09/2020,Exp - Short-Term Contract & Agency Staff - Full Cost,Migration Statistics,Concept Information Technology Ltd T/A Concept Resourcing,187657,"2,937.08",Information Management Services,Large,Programme Expenditure
UK Statistics Family,Office for National Statistics,07/09/2020,Exp - Purchase Of Goods/Services - Contractors,Data Architecture,Concept Information Technology Ltd T/A Concept Resourcing,187657,"2,520.00",Information Management Services,Large,Programme Expenditure
UK Statistics Family,Office for National Statistics,07/09/2020,Exp - Purchase Of Goods/Services - IT Contractual Services,Tech Delivery Data As A Platform,Concept Information Technology Ltd T/A Concept Resourcing,187657,"10,800.00",Information Management Services,Large,Programme Expenditure
UK Statistics Family,Office for National Statistics,07/09/2020,Exp - Purchase Of Goods/Services - Contractors,Office Of Chief Data And Information,Concept Information Technology Ltd T/A Concept Resourcing,187657,"14,628.00",Information Management Services,Large,Programme Expenditure
UK Statistics Family,Office for National Statistics,07/09/2020,Exp - Short-Term Contract & Agency Staff - Full Cost,Interviewer Management TU,Concept Information Technology Ltd T/A Concept Resourcing,187657,"2,390.27",Information Management Services,Large,Programme Expenditure
UK Statistics Family,Office for National Statistics,07/09/2020,Exp - Short-Term Contract & Agency Staff - Full Cost,Prices Division,Concept Information Technology Ltd T/A Concept Resourcing,187657,"4,302.02",Information Management Services,Large,Programme Expenditure
UK Statistics Family,Office for National Statistics,07/09/2020,Exp - Short-Term Contract & Agency Staff - Full Cost,Prices Division,Concept Information Technology Ltd T/A Concept Resourcing,187657,"9,143.73",Information Management Services,Large,Programme Expenditure
UK Statistics Family,Office for National Statistics,07/09/2020,Exp - Short-Term Contract & Agency Staff - Full Cost,Labour Market,Concept Information Technology Ltd T/A Concept Resourcing,187657,"3,687.42",Information Management Services,Large,Programme Expenditure
UK Statistics Family,Office for National Statistics,07/09/2020,Exp - Purchase Of Goods/Services - IT Contractual Services,Tech Delivery Legacy Sp,CTS (Cloud Technology Solutions Ltd),187666,"51,519.00",DST Infrastructure Preparation,Large,Programme Expenditure
UK Statistics Family,Office for National Statistics,07/09/2020,Hosting,IT Operations,Amazon Web Services Inc,187667,"76,303.23",Information Management Services,Large,Programme Expenditure
UK Statistics Family,Office for National Statistics,07/09/2020,Exp - Purchase Of Goods/Services - IT Contractual Services,Digital Delivery,Equal Experts UK Ltd,187671,"118,296.00",Information Management Services,Large,Programme Expenditure
UK Statistics Family,Office for National Statistics,08/09/2020,Exp - Purchase Of Goods/Services - Contractors,Census & Soc Methodology Dd,Concept Information Technology Ltd T/A Concept Resourcing,187672,"8,370.00",Information Management Services,Large,Programme Expenditure
UK Statistics Family,Office for National Statistics,08/09/2020,Exp - Short-Term Contract & Agency Staff - Full Cost,Data Architecture,Concept Information Technology Ltd T/A Concept Resourcing,187672,"14,470.63",Information Management Services,Large,Programme Expenditure
UK Statistics Family,Office for National Statistics,08/09/2020,Exp - Purchase Of Goods/Services - Contractors,Data Architecture,Concept Information Technology Ltd T/A Concept Resourcing,187672,"17,700.00",Information Management Services,Large,Programme Expenditure
UK Statistics Family,Office for National Statistics,08/09/2020,Exp - Purchase Of Goods/Services - Contractors,Testing,Malikshaw Interim & Executive,187683,"56,833.45",Information Management Services,SME,Programme Expenditure
UK Statistics Family,Office for National Statistics,08/09/2020,Exp - Purchase Of Goods/Services - Contractors,Covid Infection Survey,Malikshaw Interim & Executive,187683,"9,367.23",Information Management Services,SME,Programme Expenditure
UK Statistics Family,Office for National Statistics,08/09/2020,Exp - Purchase Of Goods/Services - Contractors,Digital Delivery,Malikshaw Interim & Executive,187683,"16,560.00",Information Management Services,SME,Programme Expenditure
UK Statistics Family,Office for National Statistics,08/09/2020,Exp - Short-Term Contract & Agency Staff - Full Cost,Data Architecture,Talent International,187684,737.48,Information Management Services,SME,Programme Expenditure
UK Statistics Family,Office for National Statistics,08/09/2020,Exp - Purchase Of Goods/Services - Contractors,Data Architecture,Talent International,187684,"66,264.00",Information Management Services,SME,Programme Expenditure
UK Statistics Family,Office for National Statistics,08/09/2020,Marketing & Media,Stakeholder Engagement And Comms,M&C Saatchi UK Ltd,187688,"139,758.41",Marketing Services,Large,Programme Expenditure
UK Statistics Family,Office for National Statistics,08/09/2020,Exp - Purchase Of Goods/Services - Contractors,Data Architecture,SmartSourcing Ltd,187691,"37,631.66",Information Management Services,SME,Programme Expenditure
UK Statistics Family,Office for National Statistics,09/09/2020,FM Contract Payments,FM Payments,Vinci Construction UK Limited,187692,"324,081.30",Facilities Mangement Services,Large,Programme Expenditure
UK Statistics Family,Office for National Statistics,09/09/2020,Stationery,Lodgecard,Royal Bank of Scotland,187694,1237.91,Multiple Procurement Card Purchases  - Stationery ,Large,Programme Expenditure
UK Statistics Family,Office for National Statistics,09/09/2020,Other Goods And Services,GPC,Royal Bank of Scotland,187694,"23,947.37",Multiple Procurement Card Purchases - other goods/services  ,Large,Programme Expenditure
UK Statistics Family,Office for National Statistics,09/09/2020,Travel And Subsistence,Car Hire,Royal Bank of Scotland,187694,"3,311.84",Multiple Procurement Card Purchases - Vehicle Hire  ,Large,Programme Expenditure
UK Statistics Family,Office for National Statistics,09/09/2020,Exp - Purchase Of Goods/Services - Contractors,Tech Delivery Legacy Sp,Talent International,187696,"15,600.00",Information Management Services,SME,Programme Expenditure
UK Statistics Family,Office for National Statistics,09/09/2020,Exp - Purchase Of Goods/Services - Contractors,Digital Delivery,Talent International,187696,"12,096.00",Information Management Services,SME,Programme Expenditure
UK Statistics Family,Office for National Statistics,09/09/2020,Exp - Purchase Of Goods/Services - Contractors,Business Architecture,LA FOSSE ASSOCIATES LIMITED,187697,"25,680.00",Information Management Services,Large,Programme Expenditure
UK Statistics Family,Office for National Statistics,09/09/2020,Exp - Purchase Of Goods/Services - Contractors,Business Architecture,LA FOSSE ASSOCIATES LIMITED,187697,"135,360.00",Information Management Services,Large,Programme Expenditure
UK Statistics Family,Office for National Statistics,09/09/2020,Exp - Purchase Of Goods/Services - Contractors,Business Architecture,LA FOSSE ASSOCIATES LIMITED,187697,690.00,Information Management Services,Large,Programme Expenditure
UK Statistics Family,Office for National Statistics,09/09/2020,Exp - Purchase Of Goods/Services - Contractors,Census CCS Data Collection,LA FOSSE ASSOCIATES LIMITED,187697,"13,800.00",Information Management Services,Large,Programme Expenditure
UK Statistics Family,Office for National Statistics,09/09/2020,Exp - Purchase Of Goods/Services - Contractors,Portfolio Delivery,LA FOSSE ASSOCIATES LIMITED,187697,"13,800.00",Information Management Services,Large,Programme Expenditure
UK Statistics Family,Office for National Statistics,09/09/2020,Exp - Purchase Of Goods/Services - Contractors,Tech Delivery Legacy Sp,LA FOSSE ASSOCIATES LIMITED,187697,"14,400.00",Information Management Services,Large,Programme Expenditure
UK Statistics Family,Office for National Statistics,10/09/2020,Exp - Purchase Of Goods/Services - IT Contractual Services,Strategy And Architecture,Empiric Solutions Limited,187807,"39,000.00",Information Management Services,Large,Programme Expenditure
UK Statistics Family,Office for National Statistics,10/09/2020,Exp - Short-Term Contract & Agency Staff - Full Cost,International Trade And Transactions,Concept Information Technology Ltd T/A Concept Resourcing,187808,"5,037.18",Information Management Services,Large,Programme Expenditure
UK Statistics Family,Office for National Statistics,10/09/2020,Exp - Short-Term Contract & Agency Staff - Full Cost,International Trade And Transactions,Concept Information Technology Ltd T/A Concept Resourcing,187808,"10,074.36",Information Management Services,Large,Programme Expenditure
UK Statistics Family,Office for National Statistics,10/09/2020,Exp - Short-Term Contract & Agency Staff - Full Cost,Strategy And Engagement,Concept Information Technology Ltd T/A Concept Resourcing,187808,1810.67,Information Management Services,Large,Programme Expenditure
UK Statistics Family,Office for National Statistics,10/09/2020,Exp - Short-Term Contract & Agency Staff - Full Cost,Migration Statistics,Concept Information Technology Ltd T/A Concept Resourcing,187808,"3,022.31",Information Management Services,Large,Programme Expenditure
UK Statistics Family,Office for National Statistics,10/09/2020,Exp - Short-Term Contract & Agency Staff - Full Cost,Finance,Concept Information Technology Ltd T/A Concept Resourcing,187808,"3,318.68",Information Management Services,Large,Programme Expenditure
UK Statistics Family,Office for National Statistics,10/09/2020,Exp - Short-Term Contract & Agency Staff - Full Cost,Data Architecture,Concept Information Technology Ltd T/A Concept Resourcing,187808,"5,795.23",Information Management Services,Large,Programme Expenditure
UK Statistics Family,Office for National Statistics,10/09/2020,Exp - Short-Term Contract & Agency Staff - Full Cost,Interviewer Management TU,Concept Information Technology Ltd T/A Concept Resourcing,187808,"3,247.19",Information Management Services,Large,Programme Expenditure
UK Statistics Family,Office for National Statistics,10/09/2020,Exp - Purchase Of Goods/Services - Contractors,Stakeholder Engagement And Comms,Hays,187809,"1,800.00",Information Management Services,Large,Programme Expenditure
UK Statistics Family,Office for National Statistics,10/09/2020,Exp - Short-Term Contract & Agency Staff - Full Cost,International Trade And Transactions,Hays,187809,677.38,Information Management Services,Large,Programme Expenditure
UK Statistics Family,Office for National Statistics,10/09/2020,Exp - Short-Term Contract & Agency Staff - Full Cost,Data Architecture,Hays,187809,"3,967.44",Information Management Services,Large,Programme Expenditure
UK Statistics Family,Office for National Statistics,10/09/2020,Exp - Purchase Of Goods/Services - Contractors,Tech Delivery Data As A Platform,Hays,187809,"9,360.00",Information Management Services,Large,Programme Expenditure
UK Statistics Family,Office for National Statistics,10/09/2020,Exp - Short-Term Contract & Agency Staff - Full Cost,Digital Delivery,Hays,187809,"4,505.98",Information Management Services,Large,Programme Expenditure
UK Statistics Family,Office for National Statistics,10/09/2020,Exp - Short-Term Contract & Agency Staff - Full Cost,Business Statistics Transformation,Hays,187809,"3,110.40",Information Management Services,Large,Programme Expenditure
UK Statistics Family,Office for National Statistics,10/09/2020,Exp - Purchase Of Goods/Services - Contractors,Divisional Management,Hays,187809,"4,320.00",Information Management Services,Large,Programme Expenditure
UK Statistics Family,Office for National Statistics,10/09/2020,Exp - Purchase Of Goods/Services - Contractors,Senior Management,Certes Computing Ltd,187817,"15,372.00",Information Management Services,SME,Programme Expenditure
UK Statistics Family,Office for National Statistics,10/09/2020,Exp - Purchase Of Goods/Services - Contractors,Digital Delivery,Certes Computing Ltd,187817,"18,894.00",Information Management Services,SME,Programme Expenditure
UK Statistics Family,Office for National Statistics,10/09/2020,Other Goods And Services,Social Survey Transformation Newport,APS Group,187819,"105,269.56",Mailing Services,Large,Programme Expenditure
UK Statistics Family,Office for National Statistics,10/09/2020,Marketing & Media,Stakeholder Engagement And Comms,Family & Education / iChild,187836,"136,446.00",Marketing Services,SME,Programme Expenditure
UK Statistics Family,Office for National Statistics,10/09/2020,Exp - Purchase Of Goods/Services - IT Contractual Services,Tech Delivery Next Gen IT And Infrastructure,Diegesis Limited,187842,"47,880.00",Information Management Services,Large,Programme Expenditure
UK Statistics Family,Office for National Statistics,10/09/2020,Exp - Purchase Of Goods/Services - Contractor Travel,Tech Delivery Next Gen IT And Infrastructure,Diegesis Limited,187842,702.19,Information Management Services,Large,Programme Expenditure
UK Statistics Family,Office for National Statistics,11/09/2020,Exp - Short-Term Contract & Agency Staff - Full Cost,Stakeholder Engagement And Comms,La International,187848,"4,702.35",Information Management Services,SME,Programme Expenditure
UK Statistics Family,Office for National Statistics,11/09/2020,Other Goods And Services,Stakeholder Engagement And Comms,La International,187848,54.52,Information Management Services,SME,Programme Expenditure
UK Statistics Family,Office for National Statistics,11/09/2020,Exp - Purchase Of Goods/Services - Contractors,Testing,La International,187848,10252.26,Information Management Services,SME,Programme Expenditure
UK Statistics Family,Office for National Statistics,11/09/2020,Exp - Purchase Of Goods/Services - Contractors,Testing,La International,187848,"10,764.89",Information Management Services,SME,Programme Expenditure
UK Statistics Family,Office for National Statistics,11/09/2020,Exp - Purchase Of Goods/Services - Contractors,Security Advisory,La International,187848,"6,941.70",Information Management Services,SME,Programme Expenditure
UK Statistics Family,Office for National Statistics,11/09/2020,Exp - Purchase Of Goods/Services - Contractors,Data Architecture,La International,187848,"2,466.96",Information Management Services,SME,Programme Expenditure
UK Statistics Family,Office for National Statistics,11/09/2020,Exp - Purchase Of Goods/Services - Contractors,Data Architecture,La International,187848,"7,048.50",Information Management Services,SME,Programme Expenditure
UK Statistics Family,Office for National Statistics,11/09/2020,Exp - Purchase Of Goods/Services - Contractors,Tech Delivery SRS,La International,187848,"1,794.16",Information Management Services,SME,Programme Expenditure
UK Statistics Family,Office for National Statistics,11/09/2020,Exp - Purchase Of Goods/Services - Contractors,Tech Delivery Legacy Sp,La International,187848,"21,465.90",Information Management Services,SME,Programme Expenditure
UK Statistics Family,Office for National Statistics,11/09/2020,Exp - Purchase Of Goods/Services - Contractors,Tech Delivery Legacy Sp,La International,187848,"3,524.22",Information Management Services,SME,Programme Expenditure
UK Statistics Family,Office for National Statistics,11/09/2020,Exp - Purchase Of Goods/Services - Contractors,Tech Delivery Data As A Platform,La International,187848,"6,087.37",Information Management Services,SME,Programme Expenditure
UK Statistics Family,Office for National Statistics,11/09/2020,Exp - Purchase Of Goods/Services - Contractors,IT Applications,La International,187848,"11,239.58",Information Management Services,SME,Programme Expenditure
UK Statistics Family,Office for National Statistics,11/09/2020,Exp - Purchase Of Goods/Services - Contractors,Digital Delivery,La International,187848,"13,456.26",Information Management Services,SME,Programme Expenditure
UK Statistics Family,Office for National Statistics,11/09/2020,Exp - Purchase Of Goods/Services - Contractors,Digital Delivery,La International,187848,"6,407.76",Information Management Services,SME,Programme Expenditure
UK Statistics Family,Office for National Statistics,11/09/2020,Exp - Purchase Of Goods/Services - Contractors,Digital Delivery,La International,187848,"15,378.48",Information Management Services,SME,Programme Expenditure
UK Statistics Family,Office for National Statistics,11/09/2020,Exp - Purchase Of Goods/Services - Contractors,Digital Delivery,La International,187848,"3,588.30",Information Management Services,SME,Programme Expenditure
UK Statistics Family,Office for National Statistics,11/09/2020,Exp - Purchase Of Goods/Services - Contractors,Digital Delivery,La International,187848,"13,635.54",Information Management Services,SME,Programme Expenditure
UK Statistics Family,Office for National Statistics,11/09/2020,Other Goods And Services,Social Survey Transformation Newport,APS Group,187853,"37,881.31",Mailing Services,Large,Programme Expenditure
UK Statistics Family,Office for National Statistics,11/09/2020,"ICT Outsourcing, Maintenance And Support",Senior Management Team Design,Totalmobile Ltd,187854,"122,237.40",Information Management Services,SME,Programme Expenditure
UK Statistics Family,Office for National Statistics,11/09/2020,"ICT Outsourcing, Maintenance And Support",Consultancy Management,Totalmobile Ltd,187854,"125,280.00",Information Management Services,SME,Programme Expenditure
UK Statistics Family,Office for National Statistics,14/09/2020,Exp - Short-Term Contract & Agency Staff - Full Cost,Business Change Support,Concept Information Technology Ltd T/A Concept Resourcing,187988,"9,558.39",Information Management Services,Large,Programme Expenditure
UK Statistics Family,Office for National Statistics,14/09/2020,Exp - Short-Term Contract & Agency Staff - Full Cost,Business Change Support,Concept Information Technology Ltd T/A Concept Resourcing,187988,13859.05,Information Management Services,Large,Programme Expenditure
UK Statistics Family,Office for National Statistics,14/09/2020,Exp - Short-Term Contract & Agency Staff - Full Cost,Business Change Support,Concept Information Technology Ltd T/A Concept Resourcing,187988,"9,859.26",Information Management Services,Large,Programme Expenditure
UK Statistics Family,Office for National Statistics,14/09/2020,Exp - Short-Term Contract & Agency Staff - Full Cost,Business Change Support,Concept Information Technology Ltd T/A Concept Resourcing,187988,"15,300.68",Information Management Services,Large,Programme Expenditure
UK Statistics Family,Office for National Statistics,14/09/2020,Exp - Purchase Of Goods/Services - Contractors,Business Change Support,Concept Information Technology Ltd T/A Concept Resourcing,187988,"9,470.44",Information Management Services,Large,Programme Expenditure
UK Statistics Family,Office for National Statistics,14/09/2020,Exp - Purchase Of Goods/Services - Contractors,Data Architecture,Concept Information Technology Ltd T/A Concept Resourcing,187988,"7,200.00",Information Management Services,Large,Programme Expenditure
UK Statistics Family,Office for National Statistics,14/09/2020,Exp - Short-Term Contract & Agency Staff - Full Cost,Business Statistics Transformation,Concept Information Technology Ltd T/A Concept Resourcing,187988,"6,949.49",Information Management Services,Large,Programme Expenditure
UK Statistics Family,Office for National Statistics,14/09/2020,Exp - Purchase Of Goods/Services - IT Contractual Services,Strategy And Architecture,Medley Business Solutions Ltd,187989,"30,412.80",Information Management Services,Large,Programme Expenditure
UK Statistics Family,Office for National Statistics,14/09/2020,Exp - Purchase Of Goods/Services - Contractors,Testing,La International,187990,"8,757.16",Information Management Services,SME,Programme Expenditure
UK Statistics Family,Office for National Statistics,14/09/2020,Exp - Purchase Of Goods/Services - Contractors,Testing,La International,187990,"10,476.55",Information Management Services,SME,Programme Expenditure
UK Statistics Family,Office for National Statistics,14/09/2020,Exp - Purchase Of Goods/Services - Contractors,Security Advisory,La International,187990,"2,776.68",Information Management Services,SME,Programme Expenditure
UK Statistics Family,Office for National Statistics,14/09/2020,Exp - Purchase Of Goods/Services - Contractors,Tech Delivery SRS,La International,187990,"2,870.64",Information Management Services,SME,Programme Expenditure
UK Statistics Family,Office for National Statistics,14/09/2020,Exp - Purchase Of Goods/Services - Contractors,IT Applications,La International,187990,9814.27,Information Management Services,SME,Programme Expenditure
UK Statistics Family,Office for National Statistics,14/09/2020,Exp - Purchase Of Goods/Services - Contractors,Digital Delivery,La International,187990,"14,364.00",Information Management Services,SME,Programme Expenditure
UK Statistics Family,Office for National Statistics,14/09/2020,Other Goods And Services,Social Survey Transformation Newport,APS Group,187992,"58,138.83",Mailing Services,Large,Programme Expenditure
UK Statistics Family,Office for National Statistics,14/09/2020,Exp - Purchase Of Goods/Services - Contractors,Researcher Support And Data Access ,Parity Resources Limited,187999,"3,008.22",Information Management Services,Large,Programme Expenditure
UK Statistics Family,Office for National Statistics,14/09/2020,Exp - Purchase Of Goods/Services - Contractors,Digital Delivery,Parity Resources Limited,187999,"14,353.92",Information Management Services,Large,Programme Expenditure
UK Statistics Family,Office for National Statistics,14/09/2020,Exp - Purchase Of Goods/Services - Contractors,Digital Delivery,Parity Resources Limited,187999,"10,765.44",Information Management Services,Large,Programme Expenditure
UK Statistics Family,Office for National Statistics,14/09/2020,Exp - Purchase Of Goods/Services - Contractors,Digital Delivery,Parity Resources Limited,187999,"10,076.58",Information Management Services,Large,Programme Expenditure
UK Statistics Family,Office for National Statistics,14/09/2020,Exp - Purchase Of Goods/Services - IT Contractual Services,Digital Delivery,Parity Resources Limited,187999,"9,227.52",Information Management Services,Large,Programme Expenditure
UK Statistics Family,Office for National Statistics,15/09/2020,Exp - Purchase Of Goods/Services - Incentive Payments,Interviewer Support,P & Mm Ltd,188005,"49,546.80",Survey Response Incentive Vouchers,Large,Programme Expenditure
UK Statistics Family,Office for National Statistics,15/09/2020,Exp - Purchase Of Goods/Services - Contractors,Testing,Certes Computing Ltd,188010,"23,314.08",Information Management Services,SME,Programme Expenditure
UK Statistics Family,Office for National Statistics,15/09/2020,Exp - Purchase Of Goods/Services - Contractors,Testing,Certes Computing Ltd,188010,"10,248.00",Information Management Services,SME,Programme Expenditure
UK Statistics Family,Office for National Statistics,15/09/2020,Exp - Purchase Of Goods/Services - Contractors,Programme Delivery,Certes Computing Ltd,188010,"12,809.52",Information Management Services,SME,Programme Expenditure
UK Statistics Family,Office for National Statistics,15/09/2020,Exp - Purchase Of Goods/Services - Contractors,Programme Delivery,Certes Computing Ltd,188010,"11,529.00",Information Management Services,SME,Programme Expenditure
UK Statistics Family,Office for National Statistics,15/09/2020,Exp - Purchase Of Goods/Services - Contractors,Security Advisory,Certes Computing Ltd,188010,"34,907.48",Information Management Services,SME,Programme Expenditure
UK Statistics Family,Office for National Statistics,15/09/2020,Exp - Purchase Of Goods/Services - Contractors,Security Advisory,Certes Computing Ltd,188010,16653.12,Information Management Services,SME,Programme Expenditure
UK Statistics Family,Office for National Statistics,15/09/2020,Exp - Purchase Of Goods/Services - Contractors,Data Architecture,Certes Computing Ltd,188010,"14,398.56",Information Management Services,SME,Programme Expenditure
UK Statistics Family,Office for National Statistics,15/09/2020,Exp - Purchase Of Goods/Services - Contractors,Data Architecture,Certes Computing Ltd,188010,"16,140.72",Information Management Services,SME,Programme Expenditure
UK Statistics Family,Office for National Statistics,15/09/2020,Exp - Purchase Of Goods/Services - Contractors,Strategy And Architecture,Certes Computing Ltd,188010,"41,568.06",Information Management Services,SME,Programme Expenditure
UK Statistics Family,Office for National Statistics,15/09/2020,Exp - Purchase Of Goods/Services - Contractors,Tech Delivery Legacy Sp,Certes Computing Ltd,188010,"13,450.56",Information Management Services,SME,Programme Expenditure
UK Statistics Family,Office for National Statistics,15/09/2020,Exp - Purchase Of Goods/Services - Contractors,Tech Delivery Legacy Sp,Certes Computing Ltd,188010,"30,892.70",Information Management Services,SME,Programme Expenditure
UK Statistics Family,Office for National Statistics,15/09/2020,Exp - Purchase Of Goods/Services - Contractors,Tech Delivery Legacy Sp,Certes Computing Ltd,188010,"20,931.72",Information Management Services,SME,Programme Expenditure
UK Statistics Family,Office for National Statistics,15/09/2020,Exp - Purchase Of Goods/Services - Contractors,Tech Delivery Data As A Platform,Certes Computing Ltd,188010,"13,450.56",Information Management Services,SME,Programme Expenditure
UK Statistics Family,Office for National Statistics,15/09/2020,Exp - Purchase Of Goods/Services - Contractors,Tech Delivery Data As A Platform,Certes Computing Ltd,188010,"16,012.56",Information Management Services,SME,Programme Expenditure
UK Statistics Family,Office for National Statistics,15/09/2020,Exp - Purchase Of Goods/Services - Contractors,IT Applications,Certes Computing Ltd,188010,"35,688.96",Information Management Services,SME,Programme Expenditure
UK Statistics Family,Office for National Statistics,15/09/2020,Exp - Purchase Of Goods/Services - Contractors,Digital Delivery,Certes Computing Ltd,188010,"7,200.00",Information Management Services,SME,Programme Expenditure
UK Statistics Family,Office for National Statistics,15/09/2020,Exp - Purchase Of Goods/Services - Contractors,Digital Delivery,Certes Computing Ltd,188010,"27,284.40",Information Management Services,SME,Programme Expenditure
UK Statistics Family,Office for National Statistics,15/09/2020,Exp - Purchase Of Goods/Services - Contractors,Digital Delivery,Certes Computing Ltd,188010,"12,682.01",Information Management Services,SME,Programme Expenditure
UK Statistics Family,Office for National Statistics,15/09/2020,Exp - Purchase Of Goods/Services - Contractors,Digital Delivery,Certes Computing Ltd,188010,"10,760.40",Information Management Services,SME,Programme Expenditure
UK Statistics Family,Office for National Statistics,15/09/2020,Exp - Purchase Of Goods/Services - Contractors,Digital Delivery,Certes Computing Ltd,188010,"10,568.34",Information Management Services,SME,Programme Expenditure
UK Statistics Family,Office for National Statistics,15/09/2020,Exp - Purchase Of Goods/Services - Contractors,Business Architecture Transformation And Statistical Strategy,La International,188011,"1,794.16",Information Management Services,SME,Programme Expenditure
UK Statistics Family,Office for National Statistics,15/09/2020,Exp - Purchase Of Goods/Services - Contractors,Data Architecture,La International,188011,"4,254.70",Information Management Services,SME,Programme Expenditure
UK Statistics Family,Office for National Statistics,15/09/2020,Exp - Purchase Of Goods/Services - Contractors,Data Architecture,La International,188011,"6,343.60",Information Management Services,SME,Programme Expenditure
UK Statistics Family,Office for National Statistics,15/09/2020,Exp - Purchase Of Goods/Services - Contractors,Data Architecture,La International,188011,"12,802.54",Information Management Services,SME,Programme Expenditure
UK Statistics Family,Office for National Statistics,15/09/2020,Exp - Purchase Of Goods/Services - Contractors,Data Architecture,La International,188011,"19,223.10",Information Management Services,SME,Programme Expenditure
UK Statistics Family,Office for National Statistics,15/09/2020,Permanent Staff Costs,UKSA,Cabinet Office,188016,"42,353.24",Fast Stream Recruitment,Large,Programme Expenditure
UK Statistics Family,Office for National Statistics,15/09/2020,Permanent Staff Costs,Beyond 2021 Research And Design,Cabinet Office,188016,"84,706.49",Fast Stream Recruitment,Large,Programme Expenditure
UK Statistics Family,Office for National Statistics,15/09/2020,Permanent Staff Costs,Beyond 2021 Research And Design,Cabinet Office,188016,"84,706.48",Fast Stream Recruitment,Large,Programme Expenditure
UK Statistics Family,Office for National Statistics,15/09/2020,Permanent Staff Costs,International Trade And Transactions,Cabinet Office,188016,"42,353.24",Fast Stream Recruitment,Large,Programme Expenditure
UK Statistics Family,Office for National Statistics,15/09/2020,Permanent Staff Costs,Sustainability And Inequalities,Cabinet Office,188016,"84,706.48",Fast Stream Recruitment,Large,Programme Expenditure
UK Statistics Family,Office for National Statistics,15/09/2020,Permanent Staff Costs,Sustainability And Inequalities,Cabinet Office,188016,"42,353.24",Fast Stream Recruitment,Large,Programme Expenditure
UK Statistics Family,Office for National Statistics,15/09/2020,Permanent Staff Costs,Analysis Microdata And Engagement,Cabinet Office,188016,"42,353.24",Fast Stream Recruitment,Large,Programme Expenditure
UK Statistics Family,Office for National Statistics,15/09/2020,Permanent Staff Costs,Analysis Microdata And Engagement,Cabinet Office,188016,"42,353.24",Fast Stream Recruitment,Large,Programme Expenditure
UK Statistics Family,Office for National Statistics,15/09/2020,Permanent Staff Costs,Migration Statistics,Cabinet Office,188016,"42,353.25",Fast Stream Recruitment,Large,Programme Expenditure
UK Statistics Family,Office for National Statistics,15/09/2020,Exp - Purchase Of Goods/Services - Training & Development - Seminar & Conference Fees,Learning And Capability,Cabinet Office,188016,"16,176.00",Fast Stream Recruitment,Large,Programme Expenditure
UK Statistics Family,Office for National Statistics,15/09/2020,Permanent Staff Costs,Best Practice And Impact,Cabinet Office,188016,127059.73,Fast Stream Recruitment,Large,Programme Expenditure
UK Statistics Family,Office for National Statistics,15/09/2020,Permanent Staff Costs,Crime Statistics,Cabinet Office,188016,"42,353.25",Fast Stream Recruitment,Large,Programme Expenditure
UK Statistics Family,Office for National Statistics,15/09/2020,Permanent Staff Costs,Crime Statistics,Cabinet Office,188016,"42,353.24",Fast Stream Recruitment,Large,Programme Expenditure
UK Statistics Family,Office for National Statistics,15/09/2020,Permanent Staff Costs,Population Statistics Div,Cabinet Office,188016,"42,353.24",Fast Stream Recruitment,Large,Programme Expenditure
UK Statistics Family,Office for National Statistics,15/09/2020,Permanent Staff Costs,Crime Income And Wealth,Cabinet Office,188016,84706.48,Fast Stream Recruitment,Large,Programme Expenditure
UK Statistics Family,Office for National Statistics,15/09/2020,Permanent Staff Costs,Census & Soc Methodology Dd,Cabinet Office,188016,"42,353.24",Fast Stream Recruitment,Large,Programme Expenditure
UK Statistics Family,Office for National Statistics,15/09/2020,Permanent Staff Costs,Census & Soc Methodology Dd,Cabinet Office,188016,"84,706.50",Fast Stream Recruitment,Large,Programme Expenditure
UK Statistics Family,Office for National Statistics,15/09/2020,Permanent Staff Costs,Data Science Campus,Cabinet Office,188016,"84,706.49",Fast Stream Recruitment,Large,Programme Expenditure
UK Statistics Family,Office for National Statistics,15/09/2020,Permanent Staff Costs,Public Sector And Households,Cabinet Office,188016,"42,353.24",Fast Stream Recruitment,Large,Programme Expenditure
UK Statistics Family,Office for National Statistics,15/09/2020,Permanent Staff Costs,Business Statistics Transformation,Cabinet Office,188016,"42,353.24",Fast Stream Recruitment,Large,Programme Expenditure
UK Statistics Family,Office for National Statistics,15/09/2020,Permanent Staff Costs,Prices Division,Cabinet Office,188016,"42,353.24",Fast Stream Recruitment,Large,Programme Expenditure
UK Statistics Family,Office for National Statistics,15/09/2020,Permanent Staff Costs,Business Outputs And Developments,Cabinet Office,188016,"42,353.24",Fast Stream Recruitment,Large,Programme Expenditure
UK Statistics Family,Office for National Statistics,15/09/2020,Exp - Purchase Of Goods/Services - Contractors,Business Architecture,Parity Resources Limited,188021,"7,942.80",Information Management Services,Large,Programme Expenditure
UK Statistics Family,Office for National Statistics,15/09/2020,Exp - Purchase Of Goods/Services - Contractors,Testing,Parity Resources Limited,188021,7369.2,Information Management Services,Large,Programme Expenditure
UK Statistics Family,Office for National Statistics,15/09/2020,Exp - Purchase Of Goods/Services - Contractors,Operations,Parity Resources Limited,188021,"10,771.20",Information Management Services,Large,Programme Expenditure
UK Statistics Family,Office for National Statistics,15/09/2020,Exp - Purchase Of Goods/Services - Contractors,Programme Delivery,Parity Resources Limited,188021,"13,200.00",Information Management Services,Large,Programme Expenditure
UK Statistics Family,Office for National Statistics,15/09/2020,Exp - Purchase Of Goods/Services - Contractors,Programme Delivery,Parity Resources Limited,188021,"24,406.48",Information Management Services,Large,Programme Expenditure
UK Statistics Family,Office for National Statistics,15/09/2020,Exp - Short-Term Contract & Agency Staff - Full Cost,Strategy And Engagement,Parity Resources Limited,188021,"1,001.22",Information Management Services,Large,Programme Expenditure
UK Statistics Family,Office for National Statistics,15/09/2020,Exp - Purchase Of Goods/Services - Contractors,Analysis Microdata And Engagement,Parity Resources Limited,188021,"3,600.00",Information Management Services,Large,Programme Expenditure
UK Statistics Family,Office for National Statistics,15/09/2020,Exp - Short-Term Contract & Agency Staff - Full Cost,Business Architecture Transformation And Statistical Strategy,Parity Resources Limited,188021,1465.2,Information Management Services,Large,Programme Expenditure
UK Statistics Family,Office for National Statistics,15/09/2020,Exp - Purchase Of Goods/Services - Contractors,Commercial Services,Parity Resources Limited,188021,"27,169.92",Information Management Services,Large,Programme Expenditure
UK Statistics Family,Office for National Statistics,15/09/2020,Exp - Purchase Of Goods/Services - Contractors,Security Advisory,Parity Resources Limited,188021,"17,686.08",Information Management Services,Large,Programme Expenditure
UK Statistics Family,Office for National Statistics,15/09/2020,Exp - Purchase Of Goods/Services - Contractors,Strategy And Architecture,Parity Resources Limited,188021,"8,650.80",Information Management Services,Large,Programme Expenditure
UK Statistics Family,Office for National Statistics,15/09/2020,Exp - Purchase Of Goods/Services - Contractors,IT Applications,Parity Resources Limited,188021,"21,114.36",Information Management Services,Large,Programme Expenditure
UK Statistics Family,Office for National Statistics,15/09/2020,Exp - Purchase Of Goods/Services - Contractors,Digital Delivery,Parity Resources Limited,188021,"10,765.44",Information Management Services,Large,Programme Expenditure
UK Statistics Family,Office for National Statistics,15/09/2020,Exp - Purchase Of Goods/Services - Contractors,Digital Delivery,Parity Resources Limited,188021,"14,353.92",Information Management Services,Large,Programme Expenditure
UK Statistics Family,Office for National Statistics,15/09/2020,Exp - Purchase Of Goods/Services - Contractors,Data Science Campus,Parity Resources Limited,188021,"12,676.80",Information Management Services,Large,Programme Expenditure
UK Statistics Family,Office for National Statistics,15/09/2020,Exp - Purchase Of Goods/Services - Contractors,Data As A Service,Parity Resources Limited,188021,"10,765.44",Information Management Services,Large,Programme Expenditure
UK Statistics Family,Office for National Statistics,15/09/2020,Other Goods And Services,Beyond 2021 Research And Design,The Sensible Code Company,188022,"30,960.00",Statistical Services,SME,Programme Expenditure
UK Statistics Family,Office for National Statistics,16/09/2020,Exp - Purchase Of Goods/Services - IT Contractual Services,DST Reapportioning,E Synergy Solutions,188030,"13,800.00",Information Management Services,SME,Programme Expenditure
UK Statistics Family,Office for National Statistics,16/09/2020,Exp - Purchase Of Goods/Services - IT Contractual Services,DST Reapportioning,E Synergy Solutions,188030,"14,400.00",Information Management Services,SME,Programme Expenditure
UK Statistics Family,Office for National Statistics,16/09/2020,Exp - Purchase Of Goods/Services - IT Contractual Services,Strategy And Architecture,E Synergy Solutions,188030,"10,800.00",Information Management Services,SME,Programme Expenditure
UK Statistics Family,Office for National Statistics,16/09/2020,Accommodation & Building Management,Policy Secretariat,Gresham Office Furniture Limited,188042,-293.16,Office Furniture,SME,Programme Expenditure
UK Statistics Family,Office for National Statistics,16/09/2020,Survey Incentive Vouchers,Property Services,Gresham Office Furniture Limited,188042,"4,351.20",Office Furniture,SME,Programme Expenditure
UK Statistics Family,Office for National Statistics,16/09/2020,Survey Incentive Vouchers,Business Analysis & Soc Survey,Gresham Office Furniture Limited,188042,"27,826.80",Office Furniture,SME,Programme Expenditure
UK Statistics Family,Office for National Statistics,16/09/2020,EXP - PURCHASE OF GOODS/SERVICES -  NON IT CONTRACTUAL PAYMENTS,Covid Infection Survey,HH Associates Ltd,188045,"119,694.32",Print and Post Services,SME,Programme Expenditure
UK Statistics Family,Office for National Statistics,16/09/2020,Exp - Purchase Of Goods/Services - Contractors,Digital Publishing,Methods Business & Digital Technology Ltd,188048,"35,280.00",Information Management Services,Large,Programme Expenditure
UK Statistics Family,Office for National Statistics,17/09/2020,Telecoms,IT Operations,Bt Global Services,188178,"49,780.39",Telephony Charges,Large,Programme Expenditure
UK Statistics Family,Office for National Statistics,17/09/2020,Exp - Purchase Of Goods/Services - IT Contractual Services,Tech Delivery Legacy Sp,Ibm United Kingdom Ltd,188179,"26,764.66",Information Management Services,Large,Programme Expenditure
UK Statistics Family,Office for National Statistics,17/09/2020,Exp - Purchase Of Goods/Services - Contractors,Senior Management,Certes Computing Ltd,188182,"13,066.20",Information Management Services,SME,Programme Expenditure
UK Statistics Family,Office for National Statistics,17/09/2020,Exp - Purchase Of Goods/Services - Contractors,Digital Delivery,Certes Computing Ltd,188182,"12,238.78",Information Management Services,SME,Programme Expenditure
UK Statistics Family,Office for National Statistics,17/09/2020,Other Professional Services,Covid Infection Survey,Totalmobile Ltd,188184,"77,000.00",Information Management Services,SME,Programme Expenditure
UK Statistics Family,Office for National Statistics,17/09/2020,Hosting,Covid Infection Survey,Totalmobile Ltd,188184,"25,000.00",Information Management Services,SME,Programme Expenditure
UK Statistics Family,Office for National Statistics,17/09/2020,EXP - PURCHASE OF GOODS/SERVICES -  NON IT CONTRACTUAL PAYMENTS,Data Collection Service,Good Things Foundation,188188,"132,721.26",Census Assisted Digital Services,SME,Programme Expenditure
UK Statistics Family,Office for National Statistics,17/09/2020,Exp - Short-Term Contract & Agency Staff - Full Cost,Stakeholder Engagement And Comms,Parity Resources Limited,188191,886.21,Information Management Services,Large,Programme Expenditure
UK Statistics Family,Office for National Statistics,17/09/2020,Exp - Purchase Of Goods/Services - Contractors,Stakeholder Engagement And Comms,Parity Resources Limited,188191,"3,143.52",Information Management Services,Large,Programme Expenditure
UK Statistics Family,Office for National Statistics,17/09/2020,"ICT Outsourcing, Maintenance And Support",Digital Publishing,Parity Resources Limited,188191,"14,400.00",Information Management Services,Large,Programme Expenditure
UK Statistics Family,Office for National Statistics,17/09/2020,Exp - Short-Term Contract & Agency Staff - Full Cost,International Trade And Transactions,Parity Resources Limited,188191,"2,002.44",Information Management Services,Large,Programme Expenditure
UK Statistics Family,Office for National Statistics,17/09/2020,Exp - Purchase Of Goods/Services - Contractors,International Trade And Transactions,Parity Resources Limited,188191,"27,096.00",Information Management Services,Large,Programme Expenditure
UK Statistics Family,Office for National Statistics,17/09/2020,Exp - Short-Term Contract & Agency Staff - Full Cost,Productivity Research And Professional Development,Parity Resources Limited,188191,3815.46,Information Management Services,Large,Programme Expenditure
UK Statistics Family,Office for National Statistics,17/09/2020,Exp - Purchase Of Goods/Services - Contractors,Researcher Support And Data Access ,Parity Resources Limited,188191,"3,008.22",Information Management Services,Large,Programme Expenditure
UK Statistics Family,Office for National Statistics,17/09/2020,Exp - Short-Term Contract & Agency Staff - Full Cost,Recruitment ,Parity Resources Limited,188191,"3,969.90",Information Management Services,Large,Programme Expenditure
UK Statistics Family,Office for National Statistics,17/09/2020,Exp - Short-Term Contract & Agency Staff - Full Cost,Data Architecture,Parity Resources Limited,188191,584.10,Information Management Services,Large,Programme Expenditure
UK Statistics Family,Office for National Statistics,17/09/2020,Exp - Purchase Of Goods/Services - Contractors,Data Architecture,Parity Resources Limited,188191,"2,874.05",Information Management Services,Large,Programme Expenditure
UK Statistics Family,Office for National Statistics,17/09/2020,Exp - Purchase Of Goods/Services - Contractors,IT Applications,Parity Resources Limited,188191,"1,845.60",Information Management Services,Large,Programme Expenditure
UK Statistics Family,Office for National Statistics,17/09/2020,Exp - Short-Term Contract & Agency Staff - Full Cost,Digital Delivery,Parity Resources Limited,188191,626.58,Information Management Services,Large,Programme Expenditure
UK Statistics Family,Office for National Statistics,17/09/2020,Exp - Short-Term Contract & Agency Staff - Full Cost,Public Sector And Households,Parity Resources Limited,188191,798.28,Information Management Services,Large,Programme Expenditure
UK Statistics Family,Office for National Statistics,17/09/2020,Exp - Purchase Of Goods/Services - Contractors,Business Statistics Transformation,Parity Resources Limited,188191,"8,971.20",Information Management Services,Large,Programme Expenditure
UK Statistics Family,Office for National Statistics,17/09/2020,Exp - Purchase Of Goods/Services - Contractors,Social Survey Transformation Titchfield,Parity Resources Limited,188191,"5,113.00",Information Management Services,Large,Programme Expenditure
UK Statistics Family,Office for National Statistics,18/09/2020,Exp - Purchase Of Goods/Services - IT Contractual Services,Expansion Programme,Kainos,188195,114000,Information Management Services,Large,Programme Expenditure
UK Statistics Family,Office for National Statistics,18/09/2020,Exp - Purchase Of Goods/Services - Contractors,Testing,La International,188200,"10,946.43",Information Management Services,SME,Programme Expenditure
UK Statistics Family,Office for National Statistics,18/09/2020,Exp - Purchase Of Goods/Services - Contractors,Testing,La International,188200,"9,611.52",Information Management Services,SME,Programme Expenditure
UK Statistics Family,Office for National Statistics,18/09/2020,Exp - Purchase Of Goods/Services - Contractors,Security Advisory,La International,188200,"3,470.85",Information Management Services,SME,Programme Expenditure
UK Statistics Family,Office for National Statistics,18/09/2020,Exp - Purchase Of Goods/Services - Contractors,Tech Delivery SRS,La International,188200,"3,588.30",Information Management Services,SME,Programme Expenditure
UK Statistics Family,Office for National Statistics,18/09/2020,Surveys,Crime Statistics,Kantar UK Ltd,188202,"253,538.40",Statistical Services,Large,Programme Expenditure
UK Statistics Family,Office for National Statistics,21/09/2020,Exp - Purchase Of Goods/Services - IT Contractual Services,DST Reapportioning,E Synergy Solutions,188315,"32,400.00",Information Management Services,SME,Programme Expenditure
UK Statistics Family,Office for National Statistics,21/09/2020,Exp - Purchase Of Goods/Services - IT Contractual Services,Tech Delivery Legacy Sp,E Synergy Solutions,188315,"78,168.00",Information Management Services,SME,Programme Expenditure
UK Statistics Family,Office for National Statistics,21/09/2020,Exp - Purchase Of Goods/Services - IT Contractual Services,IT Operations,E Synergy Solutions,188315,"66,120.00",Information Management Services,SME,Programme Expenditure
UK Statistics Family,Office for National Statistics,21/09/2020,Exp - Purchase Of Goods/Services - IT Contractual Services,IT Operations,E Synergy Solutions,188315,"195,987.00",Information Management Services,SME,Programme Expenditure
UK Statistics Family,Office for National Statistics,21/09/2020,Exp - Purchase Of Goods/Services - Training & Development - Seminar & Conference Fees,Learning And Capability,Korn Ferry UK Limited,188320,"35,721.00",Training and Educational Services,Large,Programme Expenditure
UK Statistics Family,Office for National Statistics,21/09/2020,Exp - Purchase Of Goods/Services - Contractors,Sustainability And Inequalities,La International,188322,"4,419.66",Information Management Services,SME,Programme Expenditure
UK Statistics Family,Office for National Statistics,21/09/2020,Exp - Purchase Of Goods/Services - Contractors,IT Applications,La International,188322,"8,086.76",Information Management Services,SME,Programme Expenditure
UK Statistics Family,Office for National Statistics,21/09/2020,Exp - Purchase Of Goods/Services - Contractors,Digital Delivery,La International,188322,"8,073.76",Information Management Services,SME,Programme Expenditure
UK Statistics Family,Office for National Statistics,21/09/2020,Exp - Purchase Of Goods/Services - Contractors,Digital Delivery,La International,188322,"8,970.86",Information Management Services,SME,Programme Expenditure
UK Statistics Family,Office for National Statistics,21/09/2020,Exp - Purchase Of Goods/Services - Contractors,Digital Delivery,La International,188322,"3,075.70",Information Management Services,SME,Programme Expenditure
UK Statistics Family,Office for National Statistics,21/09/2020,Exp - Purchase Of Goods/Services - Contractors,Business Architecture,LA FOSSE ASSOCIATES LIMITED,188323,"15,840.00",Information Management Services,Large,Programme Expenditure
UK Statistics Family,Office for National Statistics,21/09/2020,Exp - Purchase Of Goods/Services - Contractors,Tech Delivery Legacy Sp,LA FOSSE ASSOCIATES LIMITED,188323,"10,800.00",Information Management Services,Large,Programme Expenditure
UK Statistics Family,Office for National Statistics,22/09/2020,Exp - Purchase Of Goods/Services - Contractors,Data Architecture,La International,188331,"3,588.30",Information Management Services,SME,Programme Expenditure
UK Statistics Family,Office for National Statistics,22/09/2020,Exp - Purchase Of Goods/Services - Contractors,Data Architecture,La International,188331,"3,524.22",Information Management Services,SME,Programme Expenditure
UK Statistics Family,Office for National Statistics,22/09/2020,Exp - Purchase Of Goods/Services - Contractors,Data Architecture,La International,188331,"19,799.82",Information Management Services,SME,Programme Expenditure
UK Statistics Family,Office for National Statistics,22/09/2020,EXP - PURCHASE OF GOODS/SERVICES -  NON IT CONTRACTUAL PAYMENTS,Data Collection Service,HH Associates Ltd,188334,"141,897.85",Print and Post Services,SME,Programme Expenditure
UK Statistics Family,Office for National Statistics,22/09/2020,EXP - PURCHASE OF GOODS/SERVICES -  NON IT CONTRACTUAL PAYMENTS,Covid Infection Survey,HH Associates Ltd,188334,216845.1,Print and Post Services,SME,Programme Expenditure
UK Statistics Family,Office for National Statistics,22/09/2020,Exp - Purchase Of Goods And Services Consultants,Consultancy Management,Bloom Procurement Services Ltd,188335,"86,630.80",Consultancy,Large,Programme Expenditure
UK Statistics Family,Office for National Statistics,22/09/2020,Exp - Purchase Of Goods/Services - IT Contractual Services,IT Applications,Diegesis Limited,188337,"154,620.00",Information Management Services,Large,Programme Expenditure
UK Statistics Family,Office for National Statistics,22/09/2020,Exp - Purchase Of Goods/Services - Contractor Travel,IT Applications,Diegesis Limited,188337,"2,641.58",Information Management Services,Large,Programme Expenditure
UK Statistics Family,Office for National Statistics,22/09/2020,Exp - Purchase Of Goods/Services - IT Contractual Services,Office Of Chief Data And Information,Akamai Technologies Limited,188339,"36,200.00",Information Management Services,SME,Programme Expenditure
UK Statistics Family,Office for National Statistics,22/09/2020,Survey Incentive Vouchers,Census CCS Data Collection,Banner Group Ltd,188340,"9,720.00",Stationery,SME,Programme Expenditure
UK Statistics Family,Office for National Statistics,22/09/2020,Marketing & Media,Social Surveys Division,Banner Group Ltd,188340,33240,Stationery,SME,Programme Expenditure
UK Statistics Family,Office for National Statistics,22/09/2020,Exp - Purchase Of Goods/Services - IT Contractual Services,Tech Delivery Data As A Platform,Kainos,188341,"149,573.80",Information Management Services,Large,Programme Expenditure
UK Statistics Family,Office for National Statistics,22/09/2020,Hosting,Tech Delivery Data As A Platform,Kainos,188341,"7,857.02",Information Management Services,Large,Programme Expenditure
UK Statistics Family,Office for National Statistics,23/09/2020,Exp - Purchase Of Goods And Services Consultants,Digital Delivery,Xma Limited,188346,1406.26,Leasing of Devices,Large,Programme Expenditure
UK Statistics Family,Office for National Statistics,23/09/2020,Postage,Digital Delivery,Xma Limited,188346,"26,707.56",Leasing of Devices,Large,Programme Expenditure
UK Statistics Family,Office for National Statistics,23/09/2020,Exp - Purchase Of Goods/Services - IT Contractual Services,Digital Delivery,Xma Limited,188346,"99,439.96",Leasing of Devices,Large,Programme Expenditure
UK Statistics Family,Office for National Statistics,23/09/2020,Exp - Purchase Of Goods/Services - Contractors,Digital Publishing,Methods Business & Digital Technology Ltd,188354,"56,565.00",Information Management Services,Large,Programme Expenditure
UK Statistics Family,Office for National Statistics,23/09/2020,Exp - Purchase Of Goods/Services - Contractors,Business Architecture,LA FOSSE ASSOCIATES LIMITED,188356,"8,700.00",Information Management Services,Large,Programme Expenditure
UK Statistics Family,Office for National Statistics,23/09/2020,Exp - Purchase Of Goods/Services - Contractors,Business Architecture,LA FOSSE ASSOCIATES LIMITED,188356,"32,910.00",Information Management Services,Large,Programme Expenditure
UK Statistics Family,Office for National Statistics,23/09/2020,Exp - Purchase Of Goods/Services - Contractors,Census CCS Data Collection,LA FOSSE ASSOCIATES LIMITED,188356,"2,760.00",Information Management Services,Large,Programme Expenditure
UK Statistics Family,Office for National Statistics,23/09/2020,Exp - Purchase Of Goods/Services - Contractors,Data Architecture,LA FOSSE ASSOCIATES LIMITED,188356,"16,200.00",Information Management Services,Large,Programme Expenditure
UK Statistics Family,Office for National Statistics,24/09/2020,Exp - Permanent UK Staff - PRP Voucher Payments,ONS Corporate Funds,Park Retail Ltd,188464,-41.10,Performance Reward Vouchers,Large,Programme Expenditure
UK Statistics Family,Office for National Statistics,24/09/2020,Exp - Purchase Of Goods/Services - Incentive Payments,Survey Management,Park Retail Ltd,188464,"39,959.46",Survey Response Incentive Vouchers,Large,Programme Expenditure
UK Statistics Family,Office for National Statistics,24/09/2020,Exp - Purchase Of Goods/Services - Incentive Payments,Survey Management,Park Retail Ltd,188464,"4,074.36",Survey Response Incentive Vouchers,Large,Programme Expenditure
UK Statistics Family,Office for National Statistics,24/09/2020,Exp - Purchase Of Goods/Services - Incentive Payments,Survey Management,Park Retail Ltd,188464,519.16,Survey Response Incentive Vouchers,Large,Programme Expenditure
UK Statistics Family,Office for National Statistics,24/09/2020,End User Software And Hardware,Researcher Support And Data Access ,Equiniti Limited,188467,"51,974.03",Information Management Services,Large,Programme Expenditure
UK Statistics Family,Office for National Statistics,24/09/2020,"ICT Outsourcing, Maintenance And Support",IT Operations,Equiniti Limited,188467,"28,475.11",Information Management Services,Large,Programme Expenditure
UK Statistics Family,Office for National Statistics,24/09/2020,Hosting,IT Operations,Equiniti Limited,188467,"49,167.79",Information Management Services,Large,Programme Expenditure
UK Statistics Family,Office for National Statistics,24/09/2020,Exp - Purchase Of Goods/Services - Contractors,Programme Delivery,Certes Computing Ltd,188469,"1,120.84",Information Management Services,SME,Programme Expenditure
UK Statistics Family,Office for National Statistics,24/09/2020,Exp - Purchase Of Goods/Services - Contractors,Business Architecture Transformation And Statistical Strategy,Certes Computing Ltd,188469,"22,576.50",Information Management Services,SME,Programme Expenditure
UK Statistics Family,Office for National Statistics,24/09/2020,Exp - Purchase Of Goods/Services - Contractors,Digital Delivery,Certes Computing Ltd,188469,"12,489.30",Information Management Services,SME,Programme Expenditure
UK Statistics Family,Office for National Statistics,24/09/2020,EXP - PURCHASE OF GOODS/SERVICES -  NON IT CONTRACTUAL PAYMENTS,Data Collection Service,Serco Ltd,188476,"32,140.57",Census Contact Centre,Large,Programme Expenditure
UK Statistics Family,Office for National Statistics,24/09/2020,Exp - Purchase Of Goods/Services - IT Contractual Services,Digital Delivery,Methods Business & Digital Technology Ltd,188481,"99,000.00",Information Management Services,Large,Programme Expenditure
UK Statistics Family,Office for National Statistics,25/09/2020,Surveys,Health Analysis And Life Events,Bt Global Services,188484,194.57,Telephony Charges,Large,Programme Expenditure
UK Statistics Family,Office for National Statistics,25/09/2020,Telecoms,IT Operations,Bt Global Services,188484,"49,780.39",Telephony Charges,Large,Programme Expenditure
UK Statistics Family,Office for National Statistics,25/09/2020,IT (Owned) At Cost - Additions,IT Operations,Centerprise International Ltd,188488,"211,200.00",Computers and Peripherals ,Large,Programme Expenditure
UK Statistics Family,Office for National Statistics,25/09/2020,EXP - PURCHASE OF GOODS/SERVICES -  NON IT CONTRACTUAL PAYMENTS,Covid Infection Survey,HH Associates Ltd,188497,630319.68,Print and Post Services,SME,Programme Expenditure
UK Statistics Family,Office for National Statistics,28/09/2020,Specialist User Software And Hardware,Ask Business Services,Hfx Limited,188641,"3,149.12",Information Management Services,SME,Programme Expenditure
UK Statistics Family,Office for National Statistics,28/09/2020,"ICT Outsourcing, Maintenance And Support",IT Operations,Hfx Limited,188641,"24,138.62",Information Management Services,SME,Programme Expenditure
UK Statistics Family,Office for National Statistics,28/09/2020,Exp - Purchase Of Goods/Services - Contractors,Business Architecture,Parity Resources Limited,188642,"10,796.88",Information Management Services,Large,Programme Expenditure
UK Statistics Family,Office for National Statistics,28/09/2020,Exp - Purchase Of Goods/Services - Contractors,Testing,Parity Resources Limited,188642,"14,400.00",Information Management Services,Large,Programme Expenditure
UK Statistics Family,Office for National Statistics,01/09/2020,Telecoms,IT Operations,Freedom Communications (UK) Ltd,30002190,45064.8,Information Management Services,Large,Programme Expenditure
UK Statistics Family,Office for National Statistics,01/09/2020,Hosting,IT Operations,CTS (Cloud Technology Solutions Ltd),30002191,32589.89,DST Infrastructure Preparation,Large,Programme Expenditure
UK Statistics Family,Office for National Statistics,01/09/2020,FM Contract Payments,FM Payments,Vinci Construction UK Limited,30002192,"658,832.14",Facilities Mangement Services,Large,Programme Expenditure
UK Statistics Family,Office for National Statistics,04/09/2020,Surveys,Covid Infection Survey,IQVIA Limited,30002193,"13,011,086.40",Statistical Services,Large,Programme Expenditure
UK Statistics Family,Office for National Statistics,04/09/2020,Exp - Purchase Of Goods/Services - Incentive Payments,Covid Infection Survey,Sodexo Motivation Solutions U.K. ltd,30002194,"1,086,234.45",Survey Response Incentive Vouchers,Large,Programme Expenditure
UK Statistics Family,Office for National Statistics,04/09/2020,Exp - Permanent UK Staff ,ONS Corporate Funds,HM Revenue & Customs,30002196,"210,241.29",PAYE due,Large,Programme Expenditure
UK Statistics Family,Office for National Statistics,09/09/2020,Exp - Purchase Of Goods/Services - Incentive Payments,Covid Infection Survey,Sodexo Motivation Solutions U.K. ltd,30002199,"679,163.56",Survey Response Incentive Vouchers,Large,Programme Expenditure
UK Statistics Family,Office for National Statistics,16/09/2020,Exp - Purchase Of Goods/Services - Incentive Payments,Covid Infection Survey,Sodexo Motivation Solutions U.K. ltd,30002211,"910,085.82",Survey Response Incentive Vouchers,Large,Programme Expenditure
UK Statistics Family,Office for National Statistics,22/09/2020,Exp - Purchase Of Goods/Services - Incentive Payments,Covid Infection Survey,Sodexo Motivation Solutions U.K. ltd,30002217,"1,819,840.13",Survey Response Incentive Vouchers,Large,Programme Expenditure
UK Statistics Family,Office for National Statistics,22/09/2020,Surveys,Covid Infection Survey,IQVIA Limited,30002218,"7,332,000.00",Statistical Services,Large,Programme Expenditure
UK Statistics Family,Office for National Statistics,28/09/2020,Exp - Purchase Of Goods/Services - Incentive Payments,Covid Infection Survey,Sodexo Motivation Solutions U.K. ltd,30002221,"1,368,316.92",Survey Response Incentive Vouchers,Large,Programme Expenditure
UK Statistics Family,Office for National Statistics,28/09/2020,Exp - Purchase Of Goods/Services - Incentive Payments,Covid Infection Survey,Sodexo Motivation Solutions U.K. ltd,30002222,"67,142.18",Survey Response Incentive Vouchers,Large,Programme Expenditure
UK Statistics Family,Office for National Statistics,28/09/2020,Exp - Purchase Of Goods/Services - Incentive Payments,Covid Infection Survey,Sodexo Motivation Solutions U.K. ltd,30002223,"243,619.20",Survey Response Incentive Vouchers,Large,Programme Expenditure
UK Statistics Family,Office for National Statistics,30/09/2020,Exp - Purchase Of Goods/Services - Incentive Payments,Covid Infection Survey,Sodexo Motivation Solutions U.K. ltd,30002226,"32,585.28",Survey Response Incentive Vouchers,Large,Programme Expenditure
,,,,,,Report Total,"40,479,941.91",,,
